[Event "*** Titled Tuesday Blitz"]
[Site "Chess.com"]
[Date "2020.05.26"]
[Round "1"]
[White "peixe64"]
[Black "LiverpooL174"]
[Result "0-1"]
[WhiteElo "2303"]
[BlackElo "2654"]
[TimeControl "180+1"]
[EndTime "10:04:40 PDT"]
[Termination "LiverpooL174 won by checkmate"]

1. d4 {[%clk 0:03:00.9]} 1... Nf6 {[%clk 0:02:59.8]} 2. c4 {[%clk 0:03:00.9]}
2... d6 {[%clk 0:03:00.7]} 3. Nc3 {[%clk 0:02:57.6]} 3... Nbd7 {[%clk
0:03:01.6]} 4. e4 {[%clk 0:02:57.4]} 4... e5 {[%clk 0:03:02.4]} 5. Nf3 {[%clk
0:02:57.8]} 5... c6 {[%clk 0:03:03]} 6. Be2 {[%clk 0:02:53]} 6... g6 {[%clk
0:03:03.4]} 7. O-O {[%clk 0:02:52.9]} 7... Bg7 {[%clk 0:03:03.9]} 8. d5 {[%clk
0:02:44.6]} 8... c5 {[%clk 0:03:03.3]} 9. Ne1 {[%clk 0:02:42.5]} 9... O-O {[%clk
0:03:02.5]} 10. Nd3 {[%clk 0:02:42.4]} 10... h6 {[%clk 0:03:01.2]} 11. Rb1
{[%clk 0:02:39.6]} 11... Ne8 {[%clk 0:02:57.9]} 12. a3 {[%clk 0:02:37.2]} 12...
f5 {[%clk 0:02:57.8]} 13. exf5 {[%clk 0:02:36.1]} 13... gxf5 {[%clk 0:02:58.7]}
14. f4 {[%clk 0:02:36.2]} 14... e4 {[%clk 0:02:58.9]} 15. Nf2 {[%clk 0:02:36.3]}
15... Bxc3 {[%clk 0:02:55.7]} 16. bxc3 {[%clk 0:02:36.2]} 16... Kh7 {[%clk
0:02:55.8]} 17. Be3 {[%clk 0:02:32.4]} 17... Rg8 {[%clk 0:02:55.6]} 18. Kh1
{[%clk 0:02:21.3]} 18... Nef6 {[%clk 0:02:55.9]} 19. Rg1 {[%clk 0:02:08.6]}
19... Qe7 {[%clk 0:02:56.2]} 20. Qd2 {[%clk 0:01:55.1]} 20... b6 {[%clk
0:02:54.3]} 21. h3 {[%clk 0:01:49.4]} 21... Nf8 {[%clk 0:02:54.4]} 22. Kh2
{[%clk 0:01:29]} 22... Ng6 {[%clk 0:02:54.2]} 23. g3 {[%clk 0:01:24.8]} 23...
Bd7 {[%clk 0:02:52.4]} 24. Qc2 {[%clk 0:01:19]} 24... Rg7 {[%clk 0:02:51.8]} 25.
a4 {[%clk 0:01:18.9]} 25... Rag8 {[%clk 0:02:50.8]} 26. Nd1 {[%clk 0:01:19.2]}
26... Kh8 {[%clk 0:02:30.3]} 27. Bf2 {[%clk 0:01:18.8]} 27... Nxf4 {[%clk
0:02:23.3]} 28. gxf4 {[%clk 0:01:14.5]} 28... Rxg1 {[%clk 0:02:24.2]} 29. Bxg1
{[%clk 0:01:14.8]} 29... Qg7 {[%clk 0:02:24.9]} 30. Ne3 {[%clk 0:01:02]} 30...
Qg3+ {[%clk 0:02:24.3]} 31. Kh1 {[%clk 0:01:02.6]} 31... Qxh3+ {[%clk
0:02:24.8]} 32. Bh2 {[%clk 0:01:03.2]} 32... Qxe3 {[%clk 0:02:25.5]} 33. a5
{[%clk 0:00:50.9]} 33... Ng4 {[%clk 0:02:22.6]} 34. Rg1 {[%clk 0:00:33.7]} 34...
Nf2# {[%clk 0:02:20.2]} 0-1

[Event "*** Titled Tuesday Blitz"]
[Site "Chess.com"]
[Date "2020.05.26"]
[Round "1"]
[White "TokChess"]
[Black "stanyga"]
[Result "1-0"]
[WhiteElo "2303"]
[BlackElo "2588"]
[TimeControl "180+1"]
[EndTime "10:04:40 PDT"]
[Termination "TokChess won by resignation"]

1. Nf3 {[%clk 0:02:58.7]} 1... Nf6 {[%clk 0:02:59.7]} 2. g3 {[%clk 0:02:58.4]}
2... g6 {[%clk 0:02:59.1]} 3. Bg2 {[%clk 0:02:58.6]} 3... Bg7 {[%clk 0:02:59.5]}
4. O-O {[%clk 0:02:59.5]} 4... O-O {[%clk 0:02:58.9]} 5. c4 {[%clk 0:03:00.2]}
5... c5 {[%clk 0:02:57.9]} 6. Nc3 {[%clk 0:03:00.5]} 6... Nc6 {[%clk 0:02:57.1]}
7. d4 {[%clk 0:02:57.9]} 7... cxd4 {[%clk 0:02:55.2]} 8. Nxd4 {[%clk 0:02:58.8]}
8... Rb8 {[%clk 0:02:50.1]} 9. Nc2 {[%clk 0:02:39.2]} 9... d6 {[%clk 0:02:49.2]}
10. b3 {[%clk 0:02:35.3]} 10... Bd7 {[%clk 0:02:44]} 11. Bb2 {[%clk 0:02:35]}
11... a6 {[%clk 0:02:43.1]} 12. Nd5 {[%clk 0:02:23.1]} 12... Nxd5 {[%clk
0:02:39.3]} 13. Bxg7 {[%clk 0:02:24]} 13... Ne3 {[%clk 0:02:32.7]} 14. Nxe3
{[%clk 0:02:21.6]} 14... Kxg7 {[%clk 0:02:32.6]} 15. Rc1 {[%clk 0:02:12.9]}
15... Qa5 {[%clk 0:02:30.3]} 16. a4 {[%clk 0:01:54.4]} 16... Rfc8 {[%clk
0:02:28.2]} 17. Nd5 {[%clk 0:01:50.4]} 17... Be6 {[%clk 0:02:25.4]} 18. Nf4
{[%clk 0:01:43.9]} 18... Qe5 {[%clk 0:02:13.2]} 19. Nxe6+ {[%clk 0:01:43.2]}
19... Qxe6 {[%clk 0:02:08.2]} 20. Qd2 {[%clk 0:01:43.1]} 20... a5 {[%clk
0:02:05.8]} 21. Rfd1 {[%clk 0:01:36]} 21... b6 {[%clk 0:02:03.7]} 22. e3 {[%clk
0:01:32.8]} 22... Qf6 {[%clk 0:02:02.5]} 23. h4 {[%clk 0:01:32.1]} 23... h5
{[%clk 0:02:00.6]} 24. Qe2 {[%clk 0:01:27.3]} 24... Nb4 {[%clk 0:01:59.9]} 25.
Rd4 {[%clk 0:01:23.7]} 25... Rc5 {[%clk 0:01:58.1]} 26. Rcd1 {[%clk 0:01:23.6]}
26... Rbc8 {[%clk 0:01:55.8]} 27. Rf4 {[%clk 0:01:22.8]} 27... Rf5 {[%clk
0:01:54.5]} 28. Qd2 {[%clk 0:01:22.8]} 28... Rxf4 {[%clk 0:01:53.6]} 29. exf4
{[%clk 0:01:23.7]} 29... Na6 {[%clk 0:01:45.9]} 30. Bb7 {[%clk 0:01:20.4]} 1-0

[Event "*** Titled Tuesday Blitz"]
[Site "Chess.com"]
[Date "2020.05.26"]
[Round "1"]
[White "gena217"]
[Black "underdogchss"]
[Result "1-0"]
[WhiteElo "2839"]
[BlackElo "2410"]
[TimeControl "180+1"]
[EndTime "10:04:41 PDT"]
[Termination "gena217 won by resignation"]

1. e4 {[%clk 0:03:00.9]} 1... c5 {[%clk 0:02:58.6]} 2. Nf3 {[%clk 0:03:00.7]}
2... d6 {[%clk 0:02:58.8]} 3. c3 {[%clk 0:03:00.4]} 3... Nf6 {[%clk 0:02:58.5]}
4. h3 {[%clk 0:03:01]} 4... g6 {[%clk 0:02:53.6]} 5. Bd3 {[%clk 0:03:01.3]} 5...
Bg7 {[%clk 0:02:52.7]} 6. Bc2 {[%clk 0:03:02]} 6... O-O {[%clk 0:02:43]} 7. d4
{[%clk 0:03:02.3]} 7... cxd4 {[%clk 0:02:26.9]} 8. cxd4 {[%clk 0:03:03.2]} 8...
d5 {[%clk 0:02:26.3]} 9. e5 {[%clk 0:03:03.1]} 9... Ne4 {[%clk 0:02:26.7]} 10.
O-O {[%clk 0:03:03.4]} 10... Nc6 {[%clk 0:02:25.9]} 11. Nc3 {[%clk 0:03:02.8]}
11... Nxc3 {[%clk 0:02:16.3]} 12. bxc3 {[%clk 0:03:03.7]} 12... f6 {[%clk
0:02:14]} 13. exf6 {[%clk 0:03:02.7]} 13... exf6 {[%clk 0:02:13.4]} 14. Re1
{[%clk 0:03:02.9]} 14... Re8 {[%clk 0:01:58.5]} 15. Rb1 {[%clk 0:03:02.1]} 15...
Rxe1+ {[%clk 0:01:53.1]} 16. Qxe1 {[%clk 0:03:01.7]} 16... Kf7 {[%clk
0:01:49.1]} 17. Bf4 {[%clk 0:02:55.7]} 17... b6 {[%clk 0:01:46.6]} 18. Qe2
{[%clk 0:02:49.8]} 18... Be6 {[%clk 0:01:33.2]} 19. Re1 {[%clk 0:02:46.9]} 19...
Qd7 {[%clk 0:01:32.9]} 20. Ba4 {[%clk 0:02:38.4]} 20... Rc8 {[%clk 0:01:31.9]}
21. h4 {[%clk 0:02:37.8]} 21... Bg4 {[%clk 0:01:13]} 22. Qe3 {[%clk 0:02:35.1]}
22... Qe6 {[%clk 0:01:05.8]} 23. Qd2 {[%clk 0:02:33.1]} 23... Qf5 {[%clk
0:01:00.8]} 24. Nh2 {[%clk 0:02:29.4]} 24... Qd7 {[%clk 0:00:35.1]} 25. c4
{[%clk 0:02:29]} 25... Be6 {[%clk 0:00:30.5]} 26. Rxe6 {[%clk 0:02:28.3]} 26...
Qxe6 {[%clk 0:00:29.7]} 27. cxd5 {[%clk 0:02:28.7]} 27... Qe4 {[%clk 0:00:09.2]}
28. dxc6 {[%clk 0:02:26.8]} 1-0

[Event "*** Titled Tuesday Blitz"]
[Site "Chess.com"]
[Date "2020.05.26"]
[Round "1"]
[White "davidkalashian"]
[Black "Caterpiller35"]
[Result "1-0"]
[WhiteElo "2607"]
[BlackElo "2263"]
[TimeControl "180+1"]
[EndTime "10:04:41 PDT"]
[Termination "davidkalashian won by resignation"]

1. e4 {[%clk 0:03:00.9]} 1... c5 {[%clk 0:02:56.6]} 2. Nc3 {[%clk 0:02:59.3]}
2... Nc6 {[%clk 0:02:43.3]} 3. Nf3 {[%clk 0:02:57.9]} 3... e5 {[%clk 0:02:41.3]}
4. Bc4 {[%clk 0:02:56.2]} 4... Be7 {[%clk 0:02:41.4]} 5. d3 {[%clk 0:02:56.6]}
5... Nf6 {[%clk 0:02:38.8]} 6. Nd2 {[%clk 0:02:56.9]} 6... d6 {[%clk 0:02:37.8]}
7. Nf1 {[%clk 0:02:57.3]} 7... O-O {[%clk 0:02:38.1]} 8. Ne3 {[%clk 0:02:57]}
8... Nd7 {[%clk 0:02:38.5]} 9. Ncd5 {[%clk 0:02:56.9]} 9... Bg5 {[%clk
0:02:37.6]} 10. c3 {[%clk 0:02:56]} 10... Nb6 {[%clk 0:02:37.2]} 11. Bb3 {[%clk
0:02:54.3]} 11... Kh8 {[%clk 0:02:36.9]} 12. O-O {[%clk 0:02:52.2]} 12... Nxd5
{[%clk 0:02:26]} 13. Nxd5 {[%clk 0:02:47.1]} 13... Bxc1 {[%clk 0:02:25.7]} 14.
Rxc1 {[%clk 0:02:47]} 14... f5 {[%clk 0:02:25.5]} 15. f4 {[%clk 0:02:46.5]}
15... fxe4 {[%clk 0:02:20.3]} 16. dxe4 {[%clk 0:02:45.1]} 16... exf4 {[%clk
0:02:12.8]} 17. Nxf4 {[%clk 0:02:43.5]} 17... Ne5 {[%clk 0:02:12.9]} 18. h3
{[%clk 0:02:35]} 18... Qh4 {[%clk 0:02:03.8]} 19. Qxd6 {[%clk 0:02:30.4]} 19...
Bxh3 {[%clk 0:00:31.7]} 20. Qxe5 {[%clk 0:02:14.3]} 20... Rae8 {[%clk
0:00:29.9]} 21. Qh5 {[%clk 0:02:10.1]} 21... Rxf4 {[%clk 0:00:22.8]} 22. Qxe8+
{[%clk 0:02:08.2]} 1-0

[Event "*** Titled Tuesday Blitz"]
[Site "Chess.com"]
[Date "2020.05.26"]
[Round "1"]
[White "BEEkhishig"]
[Black "lelya96"]
[Result "1-0"]
[WhiteElo "2612"]
[BlackElo "2275"]
[TimeControl "180+1"]
[EndTime "10:04:44 PDT"]
[Termination "BEEkhishig won by resignation"]

1. c4 {[%clk 0:02:58.7]} 1... Nf6 {[%clk 0:02:59.3]} 2. Nc3 {[%clk 0:02:58.9]}
2... e6 {[%clk 0:02:59.4]} 3. g3 {[%clk 0:02:58.2]} 3... Bb4 {[%clk 0:02:58.5]}
4. Bg2 {[%clk 0:02:58.4]} 4... c6 {[%clk 0:02:58.3]} 5. Nf3 {[%clk 0:02:58.1]}
5... O-O {[%clk 0:02:57.9]} 6. O-O {[%clk 0:02:57.7]} 6... d5 {[%clk 0:02:58]}
7. d4 {[%clk 0:02:55.8]} 7... b6 {[%clk 0:02:55]} 8. Qb3 {[%clk 0:02:53.3]} 8...
Be7 {[%clk 0:02:53.4]} 9. Bf4 {[%clk 0:02:52.3]} 9... Bb7 {[%clk 0:02:53]} 10.
Rac1 {[%clk 0:02:51.7]} 10... Nbd7 {[%clk 0:02:50.9]} 11. Rfd1 {[%clk
0:02:51.7]} 11... Rc8 {[%clk 0:02:44.6]} 12. Ne5 {[%clk 0:02:50.1]} 12... Nh5
{[%clk 0:02:30.9]} 13. Be3 {[%clk 0:02:37]} 13... f5 {[%clk 0:02:18.9]} 14. cxd5
{[%clk 0:02:31.9]} 14... exd5 {[%clk 0:02:18.6]} 15. Nxd5 {[%clk 0:02:23]} 15...
Nxe5 {[%clk 0:02:12.1]} 16. Nxe7+ {[%clk 0:02:16.8]} 16... Kh8 {[%clk
0:02:04.6]} 17. Nxc8 {[%clk 0:02:16.1]} 17... Ng4 {[%clk 0:01:49.8]} 18. Nxa7
{[%clk 0:02:01.4]} 18... f4 {[%clk 0:01:34.2]} 19. Bxf4 {[%clk 0:01:51.6]} 19...
Nxf4 {[%clk 0:01:33.8]} 20. gxf4 {[%clk 0:01:52.5]} 20... Rxf4 {[%clk
0:01:25.6]} 21. Qg3 {[%clk 0:01:45.7]} 21... Qf6 {[%clk 0:01:11.6]} 22. e3
{[%clk 0:01:36.6]} 1-0

[Event "*** Titled Tuesday Blitz"]
[Site "Chess.com"]
[Date "2020.05.26"]
[Round "1"]
[White "CraiggoryC"]
[Black "Gyapiking"]
[Result "0-1"]
[WhiteElo "2118"]
[BlackElo "2507"]
[TimeControl "180+1"]
[EndTime "10:04:47 PDT"]
[Termination "Gyapiking won on time"]

1. e4 {[%clk 0:03:00.9]} 1... Nc6 {[%clk 0:02:58.3]} 2. Nc3 {[%clk 0:03:00.3]}
2... Nf6 {[%clk 0:02:57.3]} 3. f4 {[%clk 0:02:59.6]} 3... d5 {[%clk 0:02:56.3]}
4. e5 {[%clk 0:02:56.5]} 4... Ne4 {[%clk 0:02:55.1]} 5. Nf3 {[%clk 0:02:54.6]}
5... Bg4 {[%clk 0:02:53.2]} 6. Bd3 {[%clk 0:02:42.1]} 6... Nc5 {[%clk
0:02:51.5]} 7. Be2 {[%clk 0:02:40.5]} 7... d4 {[%clk 0:02:51.5]} 8. Nxd4 {[%clk
0:02:31.2]} 8... Qxd4 {[%clk 0:02:51.1]} 9. Bxg4 {[%clk 0:02:25.3]} 9... Qxf4
{[%clk 0:02:50.5]} 10. e6 {[%clk 0:01:56.8]} 10... Nxe6 {[%clk 0:02:43]} 11.
Bxe6 {[%clk 0:01:52.7]} 11... fxe6 {[%clk 0:02:42.7]} 12. d3 {[%clk 0:01:17.3]}
12... Qh4+ {[%clk 0:02:34.6]} 13. g3 {[%clk 0:01:14]} 13... Qh3 {[%clk
0:02:34.5]} 14. Qe2 {[%clk 0:00:42.4]} 14... Nd4 {[%clk 0:02:28.5]} 15. Qf2
{[%clk 0:00:41.8]} 15... O-O-O {[%clk 0:02:27.3]} 16. Be3 {[%clk 0:00:21.2]}
16... e5 {[%clk 0:02:26.8]} 17. O-O-O {[%clk 0:00:20.8]} 17... g6 {[%clk
0:02:26.8]} 18. Ne4 {[%clk 0:00:19.4]} 18... Bh6 {[%clk 0:02:25.7]} 19. Kb1
{[%clk 0:00:14.2]} 19... Rhf8 {[%clk 0:02:23.8]} 20. Qd2 {[%clk 0:00:07.8]}
20... Bxe3 {[%clk 0:02:21.8]} 21. Qxe3 {[%clk 0:00:07.9]} 21... Kb8 {[%clk
0:02:19.9]} 22. Ng5 {[%clk 0:00:05]} 22... Qh6 {[%clk 0:02:13.5]} 23. h4 {[%clk
0:00:02.5]} 23... Nc6 {[%clk 0:02:11.2]} 0-1

[Event "*** Titled Tuesday Blitz"]
[Site "Chess.com"]
[Date "2020.05.26"]
[Round "1"]
[White "diablanni"]
[Black "ManuDavid2910"]
[Result "0-1"]
[WhiteElo "2332"]
[BlackElo "2695"]
[TimeControl "180+1"]
[EndTime "10:04:50 PDT"]
[Termination "ManuDavid2910 won by resignation"]

1. e4 {[%clk 0:02:59.6]} 1... c5 {[%clk 0:03:00]} 2. Nf3 {[%clk 0:02:58.6]} 2...
Nc6 {[%clk 0:02:55.3]} 3. Bb5 {[%clk 0:02:58.1]} 3... e6 {[%clk 0:02:54.2]} 4.
Bxc6 {[%clk 0:02:54.2]} 4... bxc6 {[%clk 0:02:54.4]} 5. b3 {[%clk 0:02:40]} 5...
d5 {[%clk 0:02:54.3]} 6. Nc3 {[%clk 0:02:28.8]} 6... Nf6 {[%clk 0:02:52.5]} 7.
e5 {[%clk 0:02:25.2]} 7... Nd7 {[%clk 0:02:51.8]} 8. d3 {[%clk 0:02:25.1]} 8...
Be7 {[%clk 0:02:49.5]} 9. O-O {[%clk 0:02:23.9]} 9... O-O {[%clk 0:02:48.9]} 10.
Re1 {[%clk 0:02:23.8]} 10... f6 {[%clk 0:02:49.2]} 11. exf6 {[%clk 0:02:11]}
11... Bxf6 {[%clk 0:02:50.1]} 12. Bb2 {[%clk 0:02:09]} 12... e5 {[%clk
0:02:50.2]} 13. Na4 {[%clk 0:02:04.3]} 13... Re8 {[%clk 0:02:48.4]} 14. c4
{[%clk 0:01:58.2]} 14... Ba6 {[%clk 0:02:44]} 15. Qc2 {[%clk 0:01:49.7]} 15...
Rc8 {[%clk 0:02:43.7]} 16. Rad1 {[%clk 0:01:47.3]} 16... Qc7 {[%clk 0:02:42.6]}
17. Qc1 {[%clk 0:01:41.6]} 17... h6 {[%clk 0:02:38.8]} 18. h3 {[%clk 0:01:38.1]}
18... Rf8 {[%clk 0:02:37.8]} 19. Qe3 {[%clk 0:01:35.5]} 19... d4 {[%clk
0:02:34.3]} 20. Qe4 {[%clk 0:01:30.9]} 20... Rce8 {[%clk 0:02:34.3]} 21. Ba3
{[%clk 0:01:28.1]} 21... Be7 {[%clk 0:02:34.4]} 22. Nd2 {[%clk 0:01:04.6]} 22...
Bd6 {[%clk 0:02:30.9]} 23. Qg4 {[%clk 0:00:55.3]} 23... Nf6 {[%clk 0:02:30.3]}
24. Qg6 {[%clk 0:00:55]} 24... Qa5 {[%clk 0:02:25.5]} 25. Ne4 {[%clk 0:00:53]}
25... Nxe4 {[%clk 0:02:24.7]} 26. Rxe4 {[%clk 0:00:52.8]} 26... Rd8 {[%clk
0:02:19.2]} 27. Bc1 {[%clk 0:00:51.4]} 27... Rf6 {[%clk 0:02:18.5]} 28. Qg3
{[%clk 0:00:50.1]} 28... Rdf8 {[%clk 0:02:16.6]} 29. f3 {[%clk 0:00:48.2]} 29...
Bc8 {[%clk 0:02:14.2]} 30. Bd2 {[%clk 0:00:47.2]} 30... Qc7 {[%clk 0:02:12.1]}
31. Ree1 {[%clk 0:00:43.9]} 31... e4 {[%clk 0:02:11.7]} 32. Qh4 {[%clk
0:00:39.8]} 32... exf3 {[%clk 0:02:09.7]} 0-1

[Event "*** Titled Tuesday Blitz"]
[Site "Chess.com"]
[Date "2020.05.26"]
[Round "1"]
[White "bmt011"]
[Black "Kavyev_Ruslan"]
[Result "0-1"]
[WhiteElo "2064"]
[BlackElo "2490"]
[TimeControl "180+1"]
[EndTime "10:04:50 PDT"]
[Termination "Kavyev_Ruslan won on time"]

1. d4 {[%clk 0:02:59.9]} 1... Nf6 {[%clk 0:02:58.8]} 2. Bf4 {[%clk 0:02:59.2]}
2... c5 {[%clk 0:02:56.6]} 3. c3 {[%clk 0:02:51.8]} 3... Qb6 {[%clk 0:02:54.1]}
4. Qc1 {[%clk 0:02:31.8]} 4... cxd4 {[%clk 0:02:50.2]} 5. Nf3 {[%clk 0:02:31.2]}
5... dxc3 {[%clk 0:02:47]} 6. Nxc3 {[%clk 0:02:29.8]} 6... Nc6 {[%clk
0:02:47.4]} 7. e4 {[%clk 0:02:24.9]} 7... d6 {[%clk 0:02:46.1]} 8. Bb5 {[%clk
0:02:18.6]} 8... g6 {[%clk 0:02:40.7]} 9. Bh6 {[%clk 0:02:04.3]} 9... Bg4 {[%clk
0:02:29]} 10. Bxf8 {[%clk 0:02:01.1]} 10... Rxf8 {[%clk 0:02:25.9]} 11. Ng1
{[%clk 0:01:32.8]} 11... a6 {[%clk 0:02:19.5]} 12. Ba4 {[%clk 0:01:31.6]} 12...
O-O-O {[%clk 0:02:13.8]} 13. Bxc6 {[%clk 0:01:17.6]} 13... Qxc6 {[%clk
0:02:13.2]} 14. Qd2 {[%clk 0:01:04.7]} 14... Kb8 {[%clk 0:02:13]} 15. Rc1 {[%clk
0:01:03.2]} 15... Nxe4 {[%clk 0:02:12.2]} 16. Qe3 {[%clk 0:00:57.6]} 16... Nxc3
{[%clk 0:02:04.8]} 17. Rxc3 {[%clk 0:00:56]} 17... Qxg2 {[%clk 0:02:05.4]} 18.
f3 {[%clk 0:00:42.1]} 18... Be6 {[%clk 0:02:01.6]} 0-1

[Event "*** Titled Tuesday Blitz"]
[Site "Chess.com"]
[Date "2020.05.26"]
[Round "1"]
[White "Barbus89"]
[Black "GoltsevDmitry2000"]
[Result "0-1"]
[WhiteElo "2313"]
[BlackElo "2676"]
[TimeControl "180+1"]
[EndTime "10:04:51 PDT"]
[Termination "GoltsevDmitry2000 won by resignation"]

1. d4 {[%clk 0:03:00.9]} 1... Nf6 {[%clk 0:02:58.5]} 2. Nf3 {[%clk 0:03:00.3]}
2... g6 {[%clk 0:02:57.5]} 3. g3 {[%clk 0:03:00.5]} 3... Bg7 {[%clk 0:02:57.6]}
4. Bg2 {[%clk 0:03:01.4]} 4... O-O {[%clk 0:02:57.4]} 5. O-O {[%clk 0:03:02.3]}
5... e6 {[%clk 0:02:55.7]} 6. c4 {[%clk 0:02:59.6]} 6... d5 {[%clk 0:02:54.3]}
7. Ne5 {[%clk 0:02:58.1]} 7... c6 {[%clk 0:02:53.1]} 8. Nc3 {[%clk 0:02:56.7]}
8... Nbd7 {[%clk 0:02:52.7]} 9. Nxd7 {[%clk 0:02:36.4]} 9... Nxd7 {[%clk
0:02:49.3]} 10. e4 {[%clk 0:02:32.2]} 10... dxc4 {[%clk 0:02:37.1]} 11. a4
{[%clk 0:02:24.9]} 11... a5 {[%clk 0:02:35.7]} 12. Qe2 {[%clk 0:02:20]} 12...
Nb6 {[%clk 0:02:31.1]} 13. Rd1 {[%clk 0:02:14.8]} 13... Qe7 {[%clk 0:02:24.1]}
14. Be3 {[%clk 0:02:11]} 14... Rd8 {[%clk 0:02:15.9]} 15. d5 {[%clk 0:02:10.8]}
15... c5 {[%clk 0:02:16.5]} 16. Nb5 {[%clk 0:02:00.7]} 16... exd5 {[%clk
0:02:11.7]} 17. exd5 {[%clk 0:01:59.9]} 17... Bf5 {[%clk 0:01:54.7]} 18. d6
{[%clk 0:01:30]} 18... Qe5 {[%clk 0:01:52.5]} 19. Bxb7 {[%clk 0:01:22.7]} 19...
Rab8 {[%clk 0:01:51.4]} 20. Bc6 {[%clk 0:01:22.9]} 20... Qxb2 {[%clk 0:01:37.6]}
21. Qxb2 {[%clk 0:00:58.1]} 21... Bxb2 {[%clk 0:01:38.2]} 22. Ra2 {[%clk
0:00:59]} 22... c3 {[%clk 0:01:37]} 23. Bxc5 {[%clk 0:00:56.6]} 23... c2 {[%clk
0:01:34.7]} 0-1

[Event "*** Titled Tuesday Blitz"]
[Site "Chess.com"]
[Date "2020.05.26"]
[Round "1"]
[White "Forking_U"]
[Black "KuzubovYuriy"]
[Result "0-1"]
[WhiteElo "2347"]
[BlackElo "2779"]
[TimeControl "180+1"]
[EndTime "10:04:53 PDT"]
[Termination "KuzubovYuriy won on time"]

1. e4 {[%clk 0:03:00.9]} 1... c6 {[%clk 0:02:59.5]} 2. d4 {[%clk 0:03:00.5]}
2... d5 {[%clk 0:03:00.4]} 3. e5 {[%clk 0:03:01]} 3... Bf5 {[%clk 0:03:00.1]} 4.
h4 {[%clk 0:03:01.1]} 4... h5 {[%clk 0:02:59.7]} 5. Bd3 {[%clk 0:03:01.6]} 5...
Bxd3 {[%clk 0:03:00.3]} 6. Qxd3 {[%clk 0:03:02.3]} 6... e6 {[%clk 0:03:01.2]} 7.
Bg5 {[%clk 0:03:02.6]} 7... Qa5+ {[%clk 0:03:01.6]} 8. Nd2 {[%clk 0:02:57.2]}
8... Qb5 {[%clk 0:03:01.2]} 9. c4 {[%clk 0:02:29.6]} 9... dxc4 {[%clk
0:03:02.1]} 10. Nxc4 {[%clk 0:02:22.7]} 10... Bb4+ {[%clk 0:03:01.9]} 11. Ke2
{[%clk 0:02:17.9]} 11... Nh6 {[%clk 0:02:52.9]} 12. Bxh6 {[%clk 0:02:02.7]}
12... Rxh6 {[%clk 0:02:52.3]} 13. Nf3 {[%clk 0:01:55.1]} 13... Nd7 {[%clk
0:02:47.4]} 14. Ng5 {[%clk 0:01:17.5]} 14... Be7 {[%clk 0:02:35.6]} 15. Ne4
{[%clk 0:01:15.7]} 15... Kf8 {[%clk 0:02:31]} 16. Rh3 {[%clk 0:00:41.9]} 16...
Nb6 {[%clk 0:02:19.2]} 17. b3 {[%clk 0:00:40]} 17... Nd5 {[%clk 0:02:18.2]} 18.
Rf3 {[%clk 0:00:35.3]} 18... Kg8 {[%clk 0:02:13.2]} 19. Rxf7 {[%clk 0:00:15.2]}
19... Kxf7 {[%clk 0:02:07.1]} 20. Ncd6+ {[%clk 0:00:14.7]} 20... Bxd6 {[%clk
0:02:04]} 21. Nxd6+ {[%clk 0:00:15.6]} 21... Kg8 {[%clk 0:02:04]} 22. Nxb5
{[%clk 0:00:10.2]} 22... Nf4+ {[%clk 0:02:04.2]} 0-1

[Event "*** Titled Tuesday Blitz"]
[Site "Chess.com"]
[Date "2020.05.26"]
[Round "1"]
[White "SketchyMoves"]
[Black "WeAintSurePal"]
[Result "1-0"]
[WhiteElo "2638"]
[BlackElo "2301"]
[TimeControl "180+1"]
[EndTime "10:05:03 PDT"]
[Termination "SketchyMoves won by resignation"]

1. e4 {[%clk 0:02:04.4]} 1... c6 {[%clk 0:02:59.3]} 2. Nc3 {[%clk 0:02:03.9]}
2... d5 {[%clk 0:02:59.2]} 3. Nf3 {[%clk 0:02:04.4]} 3... dxe4 {[%clk
0:02:56.3]} 4. Nxe4 {[%clk 0:02:04.2]} 4... Nf6 {[%clk 0:02:56.7]} 5. Qe2 {[%clk
0:01:56.3]} 5... Bf5 {[%clk 0:02:54.8]} 6. Nxf6+ {[%clk 0:01:47.8]} 6... gxf6
{[%clk 0:02:55.7]} 7. d3 {[%clk 0:01:44.3]} 7... e6 {[%clk 0:02:53.4]} 8. g3
{[%clk 0:01:42.9]} 8... Nd7 {[%clk 0:02:49.7]} 9. Bd2 {[%clk 0:01:42.7]} 9...
Bd6 {[%clk 0:02:49.3]} 10. Bc3 {[%clk 0:01:42]} 10... Qc7 {[%clk 0:02:33.2]} 11.
Bg2 {[%clk 0:01:40.6]} 11... O-O-O {[%clk 0:02:32.4]} 12. a4 {[%clk 0:01:35.8]}
12... Ne5 {[%clk 0:02:32]} 13. Qe3 {[%clk 0:01:29.6]} 13... Kb8 {[%clk
0:02:26.5]} 14. a5 {[%clk 0:01:19.2]} 14... Nxf3+ {[%clk 0:01:59.8]} 15. Qxf3
{[%clk 0:01:15.4]} 15... Be5 {[%clk 0:01:57.7]} 16. a6 {[%clk 0:01:12.3]} 16...
Bxc3+ {[%clk 0:01:51.4]} 17. bxc3 {[%clk 0:01:13.2]} 17... Qe5+ {[%clk
0:01:38.3]} 18. Kd2 {[%clk 0:01:10.7]} 18... h5 {[%clk 0:01:30.9]} 19. Rhb1
{[%clk 0:01:00.6]} 19... Rd7 {[%clk 0:01:15.1]} 20. Qxc6 {[%clk 0:00:50.9]} 1-0

[Event "*** Titled Tuesday Blitz"]
[Site "Chess.com"]
[Date "2020.05.26"]
[Round "1"]
[White "Konek-Gorbunok"]
[Black "stoleriu"]
[Result "1/2-1/2"]
[WhiteElo "2215"]
[BlackElo "2550"]
[TimeControl "180+1"]
[EndTime "10:05:04 PDT"]
[Termination "Game drawn by agreement"]

1. d4 {[%clk 0:02:59.9]} 1... e6 {[%clk 0:03:00]} 2. Nf3 {[%clk 0:02:59.2]} 2...
Nf6 {[%clk 0:02:59]} 3. g3 {[%clk 0:02:59.2]} 3... b5 {[%clk 0:02:54.9]} 4. Bg2
{[%clk 0:02:58.9]} 4... d5 {[%clk 0:02:54.8]} 5. O-O {[%clk 0:02:58.9]} 5... Be7
{[%clk 0:02:54.8]} 6. Ne5 {[%clk 0:02:58.9]} 6... O-O {[%clk 0:02:54.4]} 7. a4
{[%clk 0:02:58]} 7... b4 {[%clk 0:02:53.2]} 8. c4 {[%clk 0:02:57.7]} 8... bxc3
{[%clk 0:02:52.9]} 9. bxc3 {[%clk 0:02:57.2]} 9... a5 {[%clk 0:02:48.5]} 10. c4
{[%clk 0:02:54.1]} 10... c6 {[%clk 0:02:48.4]} 11. Nc3 {[%clk 0:02:52.8]} 11...
Ba6 {[%clk 0:02:48.2]} 12. cxd5 {[%clk 0:02:26.8]} 12... cxd5 {[%clk 0:02:48.7]}
13. Re1 {[%clk 0:02:26.1]} 13... Bb4 {[%clk 0:02:47.2]} 14. Bd2 {[%clk 0:02:25]}
14... Nbd7 {[%clk 0:02:28.9]} 15. e4 {[%clk 0:02:01.2]} 15... Bxc3 {[%clk
0:02:18.8]} 16. Bxc3 {[%clk 0:01:55.1]} 16... Nxe4 {[%clk 0:02:18]} 17. Bxe4
{[%clk 0:01:34]} 17... dxe4 {[%clk 0:02:18.9]} 18. Bxa5 {[%clk 0:01:21.3]} 18...
Qxa5 {[%clk 0:02:08.8]} 19. Nxd7 {[%clk 0:01:21.3]} 19... Rfd8 {[%clk
0:02:09.7]} 20. Nc5 {[%clk 0:01:21.4]} 20... Bd3 {[%clk 0:02:05.6]} 21. Nb7
{[%clk 0:00:20.4]} 21... Qd5 {[%clk 0:02:03.7]} 22. Nxd8 {[%clk 0:00:20.2]}
22... Rxd8 {[%clk 0:02:04.6]} 23. Qd2 {[%clk 0:00:20]} 23... Qxd4 {[%clk
0:02:03.9]} 24. Qe3 {[%clk 0:00:20.2]} 1/2-1/2